bitfinex/quotes_BTCUSD_20250530
["timestamp","ask_amount","ask_price","bid_price","bid_amount"]
[1748596608798,0.00114,105200.0,105190.0,0.78221047]
[1748596609051,0.00114,105200.0,105190.0,0.77556846]
[1748596609269,0.00114,105200.0,105190.0,1.17556846]
[1748596610604,0.00950398,105210.0,105200.0,0.0317]
[1748596610832,0.00950398,105210.0,105200.0,0.46886077]
[1748596611039,0.00950398,105210.0,105200.0,0.46222]
[1748596611264,0.01900823,105210.0,105200.0,0.46886077]
[1748596611480,0.00950398,105210.0,105200.0,0.46886077]
[1748596611726,0.01900805,105210.0,105200.0,0.46886077]
[1748596611942,0.01900805,105210.0,105200.0,0.46222]
[1748596612161,0.01900805,105210.0,105200.0,0.45286009]
[1748596612371,0.01900805,105210.0,105200.0,0.46482]
[1748596613061,0.01900805,105210.0,105200.0,0.45585949]
[1748596613275,0.01900805,105210.0,105200.0,0.10922]
[1748596613480,0.0285123,105210.0,105200.0,0.10922]
[1748596613709,0.0285123,105210.0,105200.0,0.11586185]
[1748596613927,0.23500829,105210.0,105200.0,0.0162837]
[1748596614156,0.04491347,105210.0,105200.0,0.0162837]
[1748596614391,0.04491347,105210.0,105200.0,0.00964185]
[1748596614612,0.04491347,105210.0,105200.0,0.01628384]
[1748596614829,0.04491347,105210.0,105200.0,0.01628416]
[1748596614830,0.23501,105210.0,105200.0,0.01628416]
[1748596615045,0.25101,105210.0,105200.0,0.00964185]
[1748596615482,0.25101,105210.0,105200.0,0.01628461]
[1748596615716,0.0159,105220.0,105200.0,0.04164185]
[1748596615945,0.01900634,105220.0,105200.0,0.13933853]
[1748596616169,0.02851005,105220.0,105210.0,0.032]
[1748596616398,0.02850996,105220.0,105210.0,0.032]
[1748596616612,0.03801367,105220.0,105210.0,0.0163]
[1748596617734,0.01900805,105210.0,105200.0,0.13833853]
[1748596617956,0.01900805,105210.0,105200.0,0.22080131]
[1748596617957,0.0285123,105210.0,105200.0,0.22080131]
[1748596618174,0.03801673,105210.0,105200.0,0.03922736]
[1748596618401,0.03801673,105210.0,105200.0,0.04487025]
[1748596618627,0.03801673,105210.0,105200.0,0.03822736]
[1748596619048,0.03801673,105210.0,105200.0,0.04287139]
[1748596619274,0.24331344,105210.0,105200.0,0.01992736]
[1748596619483,0.06272206,105210.0,105200.0,0.01992736]
[1748596619701,0.06272206,105210.0,105200.0,0.02657166]
[1748596619933,0.06272197,105210.0,105200.0,0.0265717]
[1748596620184,0.06272197,105210.0,105200.0,0.01992736]
[1748596620426,0.06272197,105210.0,105200.0,0.02292736]
[1748596621694,0.0532179,105210.0,105200.0,0.02292736]
[1748596621981,0.0532179,105210.0,105200.0,0.02957463]
[1748596622933,0.0532179,105210.0,105200.0,0.0295743]
[1748596623443,0.06272269,105210.0,105200.0,0.0295743]
[1748596623682,0.06272269,105210.0,105200.0,0.02292736]
[1748596623886,0.23381,105210.0,105200.0,0.0295743]
[1748596624101,0.23990548,105210.0,105200.0,0.0295743]
[1748596624319,0.23990548,105210.0,105200.0,0.02292736]
[1748596624547,0.23990548,105210.0,105200.0,0.02957832]
[1748596624770,0.22430548,105210.0,105200.0,0.02957832]
[1748596624987,0.00950461,105210.0,105200.0,0.04497832]
[1748596625219,0.1996006,105210.0,105200.0,0.0295781]
[1748596625429,0.1996006,105210.0,105200.0,0.02957811]
[1748596625657,0.1996006,105210.0,105200.0,0.02292736]
[1748596626108,0.1996006,105210.0,105200.0,0.02958603]
[1748596626324,0.1996006,105210.0,105200.0,0.0362447]
[1748596626543,0.2153006,105210.0,105200.0,0.0362447]
[1748596626763,0.2319006,105210.0,105200.0,0.0362455]
[1748596627390,0.2153006,105210.0,105200.0,0.0362485]
[1748596628255,0.2153006,105210.0,105200.0,0.03624947]
[1748596628691,0.2153006,105210.0,105200.0,0.03625032]
[1748596629214,0.2153006,105210.0,105200.0,0.02958603]
[1748596629457,0.2153006,105210.0,105200.0,0.03625207]
[1748596629898,0.2153006,105210.0,105200.0,0.02958603]
[1748596631187,0.01900895,105210.0,105200.0,0.02958603]
[1748596631621,0.20910494,105210.0,105200.0,0.02958603]
[1748596631839,0.01900895,105210.0,105200.0,0.02958603]
[1748596632054,0.01900895,105210.0,105200.0,0.06108603]
[1748596632055,0.02851302,105210.0,105200.0,0.06108603]
[1748596632317,0.03801772,105210.0,105200.0,0.06108603]
[1748596632537,0.01900841,105210.0,105200.0,0.06108603]
[1748596632786,0.02851284,105210.0,105200.0,0.06108603]
[1748596633002,0.21608289,105220.0,105200.0,0.06108603]
[1748596633216,0.00950443,105210.0,105200.0,0.06108603]
[1748596633424,0.01900859,105210.0,105200.0,0.04578603]
[1748596633835,0.01900859,105210.0,105200.0,0.04378603]
[1748596634056,0.01900859,105210.0,105200.0,0.05337376]
[1748596634267,0.01900859,105210.0,105200.0,0.05537376]
[1748596635215,0.0285132,105210.0,105200.0,0.05537376]
[1748596635460,0.01900859,105210.0,105200.0,0.05337376]
[1748596635951,0.01900859,105210.0,105200.0,0.05537376]
[1748596637425,0.001,105220.0,105210.0,0.0308]
[1748596637634,0.02000643,105220.0,105210.0,0.12527482]
[1748596638277,0.02950987,105220.0,105210.0,0.12527482]
[1748596638470,0.02000643,105220.0,105210.0,0.12527482]
[1748596638976,0.01900643,105220.0,105210.0,0.12627482]
[1748596639227,0.00950308,105220.0,105210.0,0.12627482]
[1748596639462,0.001,105220.0,105210.0,0.12627482]
[1748596639695,0.001,105220.0,105210.0,0.46627482]
[1748596641009,0.001,105220.0,105210.0,0.46627357]
[1748596641234,0.01050317,105220.0,105210.0,0.86285395]
[1748596642082,0.01050317,105220.0,105210.0,0.86627351]
[1748596642517,0.001,105220.0,105210.0,0.86627351]
[1748596642946,0.01050308,105220.0,105210.0,0.86627351]
[1748596644033,0.001,105220.0,105210.0,0.86627351]
[1748596645403,0.01050308,105220.0,105210.0,0.86627351]
[1748596645614,0.001,105220.0,105210.0,0.86627351]
[1748596649027,0.03800989,105230.0,105210.0,0.86627351]
[1748596649028,0.53351933,105240.0,105210.0,0.86627351]
[1748596649244,0.00950227,105230.0,105220.0,0.0165]
[1748596649485,0.01900481,105230.0,105220.0,0.0165]
[1748596650127,0.02850753,105230.0,105220.0,0.0165]
[1748596650346,0.02850753,105230.0,105210.0,0.86647015]
[1748596650567,0.03150753,105230.0,105210.0,0.86647015]
[1748596651441,0.02200481,105230.0,105210.0,0.86647015]
[1748596651667,0.04421032,105220.0,105210.0,0.0034162]
[1748596651908,0.04421032,105220.0,105200.0,0.10562931]
[1748596651909,0.0347085,105210.0,105200.0,0.37958996]
[1748596652174,0.05371736,105210.0,105200.0,0.03958996]
[1748596652393,0.24030512,105210.0,105200.0,0.03617376]
[1748596653063,0.2308006,105210.0,105200.0,0.03617376]
[1748596654128,0.2308006,105210.0,105200.0,0.03717376]
[1748596654428,0.2308006,105210.0,105200.0,0.02758603]
[1748596655266,0.2308006,105210.0,105200.0,0.02958603]
[1748596657414,0.24980973,105210.0,105200.0,0.02958603]
[1748596657884,0.02520407,105210.0,105200.0,0.02958603]
[1748596658104,0.00950407,105210.0,105200.0,0.06198603]
[1748596661585,0.00950398,105210.0,105200.0,0.06198603]
[1748596662621,0.01900814,105210.0,105200.0,0.06198603]
[1748596662839,0.01900805,105210.0,105200.0,0.06198603]
[1748596663481,0.00950317,105220.0,105210.0,0.015]
[1748596663700,0.01900661,105220.0,105210.0,0.0314]
[1748596663905,0.02850996,105220.0,105210.0,0.0314]
[1748596664143,0.03801367,105220.0,105210.0,0.015]
[1748596664579,0.05118273,105240.0,105210.0,0.0314]
[1748596664790,0.0701859,105240.0,105210.0,0.12824615]
[1748596665001,0.0980595,105240.0,105210.0,0.12824615]
[1748596665210,0.08918989,105240.0,105220.0,0.0158]
[1748596666065,0.00950218,105230.0,105220.0,0.0158]
[1748596666279,0.01900445,105230.0,105210.0,0.52666995]
[1748596666506,0.02850681,105230.0,105210.0,0.52866995]
[1748596666711,0.04480681,105230.0,105210.0,0.52866995]
[1748596667585,0.02580218,105230.0,105210.0,0.52666995]
[1748596667863,0.02580218,105230.0,105210.0,0.52766995]
[1748596668083,0.01050218,105230.0,105210.0,0.52766995]
[1748596668510,0.01050218,105230.0,105210.0,0.12766995]
[1748596668723,0.01900454,105230.0,105210.0,0.12766995]
[1748596668930,0.01900454,105230.0,105210.0,0.12866995]
[1748596669142,0.01900454,105230.0,105210.0,0.52866995]
[1748596669564,0.03510454,105230.0,105210.0,0.52866995]
[1748596669774,0.24417153,105230.0,105210.0,0.52866995]
[1748596669988,0.05150508,105230.0,105210.0,0.60270995]
[1748596670199,0.06100798,105230.0,105210.0,0.60270995]
[1748596670383,0.06100798,105230.0,105210.0,0.60270999]
[1748596670859,0.06100798,105230.0,105210.0,0.20270999]
[1748596671290,0.04460789,105230.0,105210.0,0.21930999]
[1748596671709,0.01900508,105230.0,105210.0,0.21930999]
[1748596672133,0.00950218,105230.0,105210.0,0.20350999]
[1748596672346,0.05408672,105240.0,105220.0,0.0325]
[1748596672789,0.24412876,105240.0,105220.0,0.0325]
[1748596673017,0.00950218,105230.0,105220.0,0.0325]
[1748596673623,0.01900463,105230.0,105220.0,0.0325]
[1748596673827,0.00950218,105230.0,105220.0,0.0159]
[1748596674092,0.00950218,105230.0,105210.0,0.54150999]
[1748596674093,0.00950317,105220.0,105210.0,0.54150999]
[1748596674295,0.00950308,105220.0,105210.0,0.54150999]
[1748596674510,0.0692107,105230.0,105210.0,0.54150982]
[1748596674743,0.25927227,105230.0,105210.0,0.54150982]
[1748596674956,0.00950308,105220.0,105210.0,0.94150982]
[1748596675169,0.00950326,105220.0,105210.0,0.94150982]
[1748596675623,0.00950308,105220.0,105210.0,0.94150982]
[1748596675830,0.01900643,105220.0,105210.0,0.94250982]
[1748596676240,0.01900643,105220.0,105210.0,0.92590982]
[1748596676450,0.02851005,105220.0,105210.0,0.34441587]
[1748596676685,0.01900643,105220.0,105210.0,0.34541587]
[1748596676891,0.02850996,105220.0,105210.0,0.36181587]
[1748596677107,0.01900643,105220.0,105210.0,0.36081587]
[1748596677326,0.02850996,105220.0,105210.0,0.36181587]
[1748596677745,0.01900643,105220.0,105210.0,0.36181587]
[1748596678605,0.01900643,105220.0,105210.0,0.3584]
[1748596678812,0.01900643,105220.0,105210.0,0.36181594]
[1748596679221,0.01900634,105220.0,105210.0,0.36181594]
[1748596679728,0.02850978,105220.0,105210.0,0.36181594]
[1748596679928,0.01900634,105220.0,105210.0,0.36181594]
[1748596680139,0.02850978,105220.0,105210.0,0.00541594]
[1748596680347,0.02850978,105220.0,105210.0,0.002]
[1748596680787,0.06351729,105220.0,105210.0,0.002]
[1748596680984,0.0540134,105220.0,105210.0,0.002]
[1748596681620,0.25359522,105220.0,105210.0,0.002]
[1748596681797,0.04450978,105220.0,105210.0,0.002]
[1748596682034,0.05401349,105220.0,105210.0,0.002]
[1748596684039,0.05401421,105220.0,105210.0,0.002]
[1748596684686,0.24409214,105220.0,105210.0,0.002]
[1748596684926,0.23198173,105220.0,105210.0,0.002]
[1748596689576,0.0324,105220.0,105210.0,0.002]
[1748596689792,0.02490272,105230.0,105210.0,0.0323]
[1748596690037,0.01900463,105230.0,105220.0,0.015]
[1748596690254,0.03801025,105230.0,105220.0,0.015]
[1748596690480,0.22392795,105240.0,105220.0,0.015]
[1748596690692,0.22392795,105240.0,105220.0,0.0315]
[1748596690693,0.0285078,105230.0,105220.0,0.0315]
[1748596690908,0.01900499,105230.0,105220.0,0.0315]
[1748596691321,0.02000499,105230.0,105220.0,0.0315]
[1748596691523,0.0295078,105230.0,105220.0,0.0315]
[1748596692784,0.02950771,105230.0,105220.0,0.0315]
[1748596693208,0.0200049,105230.0,105220.0,0.0315]
[1748596693431,0.001,105230.0,105220.0,0.38604085]
[1748596693653,0.001,105230.0,105220.0,0.8604948]
[1748596693864,0.0089811,105240.0,105230.0,0.04524085]
[1748596694073,0.0089811,105240.0,105230.0,0.50987112]
[1748596694302,0.0089811,105240.0,105230.0,0.54653898]
[1748596694738,0.0089811,105240.0,105230.0,0.94653898]
[1748596695639,0.0089811,105240.0,105230.0,0.94198388]
[1748596695851,0.0089811,105240.0,105230.0,0.9084261]
[1748596696248,0.0089811,105240.0,105230.0,0.94195001]
[1748596696693,0.0089811,105240.0,105230.0,0.9104261]
[1748596696915,0.0089811,105240.0,105230.0,0.8782948]
[1748596697122,0.0089811,105240.0,105230.0,0.9103696]
[1748596697339,0.0089811,105240.0,105230.0,0.94687792]
[1748596697819,0.0089811,105240.0,105230.0,0.9514243]
[1748596698044,0.0089811,105240.0,105230.0,1.06089762]
[1748596698305,0.0089811,105240.0,105230.0,0.96393612]
[1748596698520,0.0089811,105240.0,105230.0,0.56393612]
[1748596698736,0.0089811,105240.0,105230.0,0.22052727]
[1748596698949,0.01848246,105240.0,105230.0,0.13008727]
[1748596699159,0.01848246,105240.0,105230.0,0.20552727]
[1748596699374,0.0089811,105240.0,105230.0,0.20552727]
[1748596699805,0.0089811,105240.0,105230.0,0.54552727]
[1748596700424,0.0089811,105240.0,105230.0,0.45508727]
[1748596700627,0.0089811,105240.0,105230.0,0.54552727]
[1748596701071,0.0089811,105240.0,105230.0,0.56172727]
[1748596701303,0.0089811,105240.0,105230.0,0.57712727]
[1748596705879,0.0089811,105240.0,105230.0,0.56172727]
[1748596706737,0.0089811,105240.0,105230.0,0.22172727]
[1748596706960,0.0089811,105240.0,105230.0,0.63712727]
[1748596708839,0.0089811,105240.0,105230.0,0.99166812]
[1748596709086,0.0089811,105240.0,105230.0,0.99507415]
[1748596709327,0.0089811,105240.0,105230.0,1.06176851]
[1748596713431,0.0089811,105240.0,105230.0,1.40694407]
[1748596713860,0.04459406,105280.0,105250.0,0.0324]
[1748596714071,0.05423952,105280.0,105260.0,0.4304]
[1748596714519,0.00949857,105270.0,105260.0,0.4304]
[1748596715675,0.04509616,105270.0,105260.0,0.4304]
[1748596716314,0.04809616,105270.0,105260.0,0.4304]
[1748596716764,0.03859723,105270.0,105260.0,0.4304]
[1748596717187,0.02199723,105270.0,105260.0,0.4304]
[1748596720046,0.040995,105270.0,105260.0,0.4304]
[1748596720258,0.03149598,105270.0,105260.0,0.4304]
[1748596721101,0.003,105270.0,105260.0,0.55305395]
[1748596721530,0.003,105270.0,105260.0,0.53735395]
[1748596722193,0.03813979,105280.0,105260.0,0.53735395]
[1748596722194,0.05363979,105280.0,105260.0,0.54075918]
[1748596722380,0.0441414,105280.0,105260.0,0.54075918]
[1748596722840,0.04414113,105280.0,105260.0,0.54375918]
[1748596723257,0.04414095,105280.0,105260.0,0.54375918]
[1748596723458,0.04414095,105280.0,105260.0,0.54275918]
[1748596723679,0.05363915,105280.0,105260.0,0.54375918]
[1748596723923,0.02499857,105270.0,105260.0,0.52785918]
[1748596724130,0.0155,105270.0,105260.0,0.53725058]
[1748596724343,0.0155,105270.0,105260.0,0.53525058]
[1748596724752,0.0155,105270.0,105260.0,0.53725058]
[1748596724966,0.05004302,105280.0,105260.0,0.95365058]
[1748596725175,0.04414095,105280.0,105260.0,0.96985058]
[1748596725395,0.05363924,105280.0,105260.0,0.56785058]
[1748596725617,0.03464284,105280.0,105260.0,0.56785058]
[1748596725827,0.01914284,105280.0,105260.0,0.96885058]
[1748596726039,0.01914284,105280.0,105260.0,0.96885771]
[1748596726252,0.01914284,105280.0,105260.0,0.96785771]
[1748596726479,0.03813924,105280.0,105260.0,0.96685771]
[1748596726687,0.02864095,105280.0,105260.0,0.96685771]
[1748596726891,0.02864095,105280.0,105260.0,0.96785771]
[1748596727591,0.04454095,105280.0,105260.0,0.96985771]
[1748596728529,0.05984095,105280.0,105260.0,0.95235771]
[1748596728750,0.06933924,105280.0,105260.0,0.95235771]
[1748596728994,0.05984095,105280.0,105260.0,0.95235771]
[1748596729688,0.06933934,105280.0,105260.0,0.95235771]
[1748596729900,0.06933924,105280.0,105260.0,0.95235771]
[1748596730116,0.05984095,105280.0,105260.0,0.95235771]
[1748596730338,0.05984095,105280.0,105260.0,0.96855681]
[1748596731277,0.04454095,105280.0,105260.0,0.96855681]
[1748596732641,0.04454086,105280.0,105260.0,0.96855681]
[1748596733069,0.05403906,105280.0,105260.0,0.96855681]
[1748596733484,0.04454086,105280.0,105260.0,0.96855681]
[1748596733742,0.05403906,105280.0,105260.0,0.96855681]
[1748596734422,0.04454086,105280.0,105260.0,0.96855681]
[1748596734640,0.05403906,105280.0,105260.0,0.96865681]
[1748596734867,0.07873754,105280.0,105260.0,0.95245681]
[1748596735089,0.01899741,105270.0,105260.0,0.35590286]
[1748596735304,0.04469652,105270.0,105260.0,0.44846286]
[1748596735525,0.03519741,105270.0,105260.0,0.44846286]
[1748596735760,0.04469652,105270.0,105260.0,0.44846286]
[1748596736002,0.04469643,105270.0,105260.0,0.10646286]
[1748596736260,0.04469643,105270.0,105260.0,0.10546286]
[1748596736707,0.04469643,105270.0,105260.0,0.10646286]
[1748596737358,0.04469643,105270.0,105260.0,0.10846286]
[1748596737790,0.04469616,105270.0,105260.0,0.10846286]
[1748596738216,0.04469634,105270.0,105260.0,0.10846286]
[1748596738432,0.04469625,105270.0,105260.0,0.10846286]
[1748596738660,0.04469625,105270.0,105260.0,0.10846878]
[1748596738898,0.04469625,105270.0,105260.0,0.10946878]
[1748596739109,0.04469625,105270.0,105260.0,0.44946878]
[1748596740026,0.03519732,105270.0,105260.0,0.44946878]
[1748596740292,0.04469625,105270.0,105260.0,0.44946878]
[1748596741150,0.04469616,105270.0,105260.0,0.44946878]
[1748596741383,0.04469616,105270.0,105260.0,0.45401516]
[1748596741587,0.04469616,105270.0,105260.0,0.45401622]
[1748596742030,0.05419509,105270.0,105260.0,0.45401622]
[1748596742263,0.05419509,105270.0,105260.0,0.36145622]
[1748596742774,0.06369411,105270.0,105260.0,0.36145622]
[1748596743009,0.04469616,105270.0,105260.0,0.35690984]
[1748596743247,0.04469616,105270.0,105260.0,0.36145622]
[1748596744192,0.05419518,105270.0,105260.0,0.36145622]
[1748596744414,0.06369429,105270.0,105260.0,0.36145622]
[1748596744643,0.05419518,105270.0,105260.0,0.36145622]
[1748596745763,0.05419518,105270.0,105260.0,0.36145605]
[1748596746220,0.04469616,105270.0,105260.0,0.36145605]
[1748596746424,0.05419518,105270.0,105260.0,0.36145605]
[1748596746668,0.05419509,105270.0,105260.0,0.36145605]
[1748596746876,0.02569857,105270.0,105260.0,0.36145605]
[1748596747091,0.02484509,105280.0,105260.0,0.36145605]
[1748596747300,0.06004159,105280.0,105260.0,0.37695605]
[1748596747530,0.02584482,105280.0,105260.0,0.48401]
[1748596747749,0.03534275,105280.0,105270.0,0.00341827]
[1748596747974,0.00014707,105280.0,105270.0,0.11147827]
[1748596748187,0.00014707,105280.0,105270.0,0.12747827]
[1748596748402,0.00014707,105280.0,105270.0,0.14201912]
[1748596749052,0.00964473,105280.0,105270.0,0.14201912]
[1748596749519,0.00014707,105280.0,105270.0,0.14201912]
[1748596749742,0.00014707,105280.0,105270.0,0.14201718]
[1748596749953,0.00014707,105280.0,105270.0,0.14301718]
[1748596750181,0.00014707,105280.0,105270.0,0.48301718]
[1748596750395,0.00964473,105280.0,105270.0,0.48301718]
[1748596751600,0.00014707,105280.0,105270.0,0.48301718]
[1748596751849,0.00964482,105280.0,105270.0,0.48301718]
[1748596752113,0.00964482,105280.0,105270.0,0.46701718]
[1748596752637,0.23991298,105280.0,105270.0,0.34441633]
[1748596753387,0.23041496,105280.0,105270.0,0.34441633]
[1748596753880,0.23041496,105280.0,105270.0,0.341]
[1748596754380,0.23041496,105280.0,105270.0,0.00441449]
[1748596754879,0.23041496,105280.0,105270.0,0.001]
[1748596755370,0.23041496,105280.0,105270.0,0.00441449]
[1748596755609,0.32146891,105280.0,105270.0,0.001]
[1748596758858,0.23041496,105280.0,105270.0,0.001]
[1748596759864,0.02864113,105280.0,105270.0,0.002]
[1748596760084,0.03813961,105280.0,105270.0,0.002]
[1748596760289,0.02864113,105280.0,105270.0,0.002]
[1748596760734,0.03813961,105280.0,105270.0,0.002]
[1748596761077,0.22810921,105280.0,105270.0,0.002]
[1748596761702,0.23471146,105280.0,105270.0,0.002]
[1748596762765,0.20911298,105280.0,105270.0,0.002]
[1748596764240,0.01914284,105280.0,105270.0,0.002]
[1748596764467,0.01914275,105280.0,105270.0,0.04744085]
[1748596764683,0.01914275,105280.0,105270.0,0.05085349]
[1748596764931,0.00964482,105280.0,105270.0,0.05085349]
[1748596765169,0.01914275,105280.0,105270.0,0.05085349]
[1748596766080,0.00014707,105280.0,105270.0,0.05085349]
[1748596766294,0.00964491,105280.0,105270.0,0.05085349]
[1748596766495,0.00964482,105280.0,105270.0,0.05085349]
[1748596766708,0.00014707,105280.0,105270.0,0.05085288]
[1748596767579,0.01914284,105280.0,105270.0,0.05085288]
[1748596767796,0.02864095,105280.0,105270.0,0.05085288]
[1748596768018,0.01914284,105280.0,105270.0,0.03575288]
[1748596768675,0.00964491,105280.0,105270.0,0.03575288]
[1748596769427,0.00964482,105280.0,105270.0,0.03575288]
[1748596769629,0.00964491,105280.0,105270.0,0.05225288]
[1748596772201,0.00014707,105280.0,105270.0,0.05225288]
[1748596772626,0.00964482,105280.0,105270.0,0.05225288]
[1748596772833,0.01914275,105280.0,105270.0,0.05225288]
[1748596773036,0.00964482,105280.0,105270.0,0.05225288]
[1748596774081,0.01914275,105280.0,105270.0,0.05225288]
[1748596774822,0.00964482,105280.0,105270.0,0.05225288]
[1748596775027,0.00964482,105280.0,105270.0,0.03575288]
[1748596775231,0.01914275,105280.0,105270.0,0.03574778]
[1748596775635,0.00964482,105280.0,105270.0,0.05084774]
[1748596776231,0.00014707,105280.0,105270.0,0.05084774]
[1748596776673,0.00964491,105280.0,105270.0,0.05084774]
[1748596776830,0.00014707,105280.0,105270.0,0.05084774]
[1748596777040,0.00014707,105280.0,105270.0,0.08434689]
[1748596777230,0.00964473,105280.0,105270.0,0.11639389]
[1748596777510,0.01914248,105280.0,105270.0,0.05084774]
[1748596777669,0.00014707,105280.0,105270.0,0.11639213]
[1748596778084,0.00014707,105280.0,105270.0,0.11639156]
[1748596778482,0.00014707,105280.0,105270.0,0.12093794]
[1748596778740,0.00014707,105280.0,105270.0,0.1233126]
[1748596779726,0.00014707,105280.0,105270.0,0.11876307]
[1748596780453,0.00014707,105280.0,105270.0,0.11876213]
[1748596781274,0.00014707,105280.0,105270.0,0.51876213]
[1748596781452,0.00014707,105280.0,105270.0,0.51638747]
[1748596781655,0.00014707,105280.0,105270.0,0.51638548]
[1748596784258,0.00014707,105280.0,105270.0,0.20743943]
[1748596784934,0.00014707,105280.0,105270.0,0.60743943]
[1748596785347,0.00014707,105280.0,105270.0,0.54190169]
[1748596786476,0.00014707,105280.0,105270.0,0.63670169]
[1748596787117,0.00014707,105280.0,105270.0,0.23670169]
[1748596788309,0.00014707,105280.0,105270.0,0.23670063]
[1748596788512,0.00014707,105280.0,105270.0,0.24124701]
[1748596791257,0.00014707,105280.0,105270.0,0.64124701]
[1748596793509,0.00014707,105280.0,105270.0,0.63784118]
[1748596794297,0.00014707,105280.0,105270.0,0.23784118]
[1748596794737,0.00014707,105280.0,105270.0,0.63784118]
[1748596797703,0.00014707,105280.0,105270.0,0.23784118]
[1748596798352,0.00014707,105280.0,105270.0,0.63784118]
[1748596799855,0.00014707,105280.0,105270.0,0.97784118]
[1748596801299,0.00014707,105280.0,105270.0,0.94694118]
[1748596801908,0.00014707,105280.0,105270.0,0.96214118]
[1748596802933,0.00014707,105280.0,105270.0,0.86734118]
[1748596803541,0.00014707,105280.0,105270.0,0.93285716]
[1748596803895,0.00014707,105280.0,105270.0,0.93287559]
[1748596804495,0.00014707,105280.0,105270.0,0.94867559]
[1748596805997,0.00014707,105280.0,105270.0,0.93287559]
[1748596806856,0.00014707,105280.0,105270.0,0.94867559]
[1748596808147,0.00014707,105280.0,105270.0,0.88314118]
[1748596808357,0.00014707,105280.0,105270.0,0.9329395]
[1748596812500,0.00014707,105280.0,105270.0,0.93297106]
[1748596812716,0.00014707,105280.0,105270.0,1.02777106]
[1748596812928,0.01914266,105280.0,105270.0,0.93297106]
[1748596813146,0.00014707,105280.0,105270.0,1.02657106]
[1748596813573,0.00014707,105280.0,105270.0,0.62657106]
[1748596814001,0.00014707,105280.0,105270.0,0.99448036]
[1748596814208,0.00014707,105280.0,105270.0,1.02657721]
[1748596815639,0.00014707,105280.0,105270.0,1.04197721]
[1748596816786,0.00014707,105280.0,105270.0,0.97634118]
[1748596817033,0.00014707,105280.0,105270.0,1.0419813]
[1748596817251,0.04069595,105300.0,105280.0,0.01454085]
[1748596817480,0.0353823,105300.0,105290.0,0.0034134]
[1748596817729,0.04487861,105300.0,105290.0,0.01795425]
[1748596818195,0.05437501,105300.0,105290.0,0.01795425]
[1748596818411,0.04487861,105300.0,105290.0,0.01795425]
[1748596818849,0.05437501,105300.0,105290.0,0.01795425]
[1748596819300,0.05437501,105300.0,105290.0,0.04269187]
[1748596819970,0.0353823,105300.0,105290.0,0.04269187]
[1748596820187,0.02588608,105300.0,105290.0,0.04269187]
[1748596820429,0.0353823,105300.0,105290.0,0.04269187]
[1748596821310,0.04487861,105300.0,105290.0,0.04269187]
[1748596821523,0.0448787,105300.0,105290.0,0.04269187]
[1748596822609,0.02588608,105300.0,105290.0,0.04269187]
[1748596822845,0.04487852,105300.0,105290.0,0.04269187]
[1748596824831,0.03538221,105300.0,105290.0,0.04269187]
[1748596825322,0.02588608,105300.0,105290.0,0.04610106]
[1748596825605,0.01948221,105300.0,105290.0,0.04610079]
[1748596827580,0.00998608,105300.0,105290.0,0.04610079]
[1748596827795,0.01948221,105300.0,105290.0,0.04610079]
[1748596828461,0.00998608,105300.0,105290.0,0.04610079]
[1748596828682,0.01948221,105300.0,105290.0,0.04610079]
[1748596829144,0.00998608,105300.0,105290.0,0.04610079]
[1748596829400,0.00049013,105300.0,105290.0,0.15502888]
[1748596829628,0.00049013,105300.0,105290.0,0.50751996]
[1748596829841,0.00049013,105300.0,105290.0,0.55934925]
[1748596830052,0.00049013,105300.0,105290.0,0.56275667]
[1748596830519,0.00049013,105300.0,105290.0,0.96275667]
[1748596831212,0.00049013,105300.0,105290.0,0.95821029]
[1748596832370,0.00049013,105300.0,105290.0,0.89265324]
[1748596832594,0.00049013,105300.0,105290.0,0.55265324]
[1748596833307,0.00049013,105300.0,105290.0,0.15265324]
[1748596833518,0.00049013,105300.0,105290.0,0.22510503]
[1748596833733,0.00049013,105300.0,105290.0,0.62273091]
[1748596833959,0.00049013,105300.0,105290.0,0.62269712]
[1748596834397,0.00049013,105300.0,105290.0,0.22269712]
[1748596835496,0.00049013,105300.0,105290.0,0.31629712]
[1748596835714,0.00049013,105300.0,105290.0,0.65629712]
[1748596836364,0.00049013,105300.0,105290.0,0.59079713]
[1748596838345,0.00049013,105300.0,105290.0,0.59079678]
[1748596839680,0.00049013,105300.0,105290.0,0.60729678]
[1748596842073,0.00049013,105300.0,105290.0,1.00729678]
[1748596842302,0.00049013,105300.0,105290.0,0.60729678]
[1748596842786,0.00049013,105300.0,105290.0,1.0693628]
[1748596843283,0.00049013,105300.0,105290.0,1.0713628]
[1748596843720,0.00049013,105300.0,105290.0,1.0723628]
[1748596846865,0.00049013,105300.0,105290.0,1.07234114]
[1748596848765,0.00049013,105300.0,105290.0,0.97874114]
[1748596849010,0.00049013,105300.0,105290.0,1.35276114]
[1748596849511,0.00049013,105300.0,105290.0,1.36826114]
[1748596850287,0.00049013,105300.0,105290.0,1.07098114]
[1748596851831,0.032,105330.0,105320.0,0.01454085]
[1748596852073,0.05113354,105330.0,105320.0,0.01454085]
[1748596852314,0.05113345,105330.0,105320.0,0.01454085]
[1748596853043,0.05113345,105330.0,105320.0,0.01654085]
[1748596853301,0.04164011,105330.0,105320.0,0.01754085]
[1748596853768,0.03483345,105330.0,105320.0,0.01754085]
[1748596854247,0.02534029,105330.0,105320.0,0.01754085]
[1748596854489,0.0253402,105330.0,105320.0,0.01754085]
[1748596854983,0.03483354,105330.0,105320.0,0.01754085]
[1748596858357,0.04432706,105330.0,105320.0,0.01754085]
[1748596858573,0.05053354,105330.0,105320.0,0.01754085]
[1748596858792,0.06002697,105330.0,105320.0,0.01754085]
[1748596859916,0.06952049,105330.0,105320.0,0.01754085]
[1748596860830,0.07901419,105330.0,105320.0,0.01754085]
[1748596861069,0.06952049,105330.0,105320.0,0.01754085]
[1748596862726,0.07901419,105330.0,105320.0,0.01754085]
[1748596863708,0.06952049,105330.0,105320.0,0.01754085]
[1748596863925,0.07901419,105330.0,105320.0,0.01754085]
[1748596864365,0.06002697,105330.0,105320.0,0.01754085]
[1748596864589,0.06952058,105330.0,105320.0,0.01754085]
[1748596865463,0.06952058,105330.0,105320.0,0.02418104]
[1748596865676,0.06952058,105330.0,105320.0,0.02418107]
[1748596865893,0.06002697,105330.0,105320.0,0.02418132]
[1748596866123,0.06952049,105330.0,105320.0,0.02418132]
[1748596866368,0.05382058,105330.0,105320.0,0.0241813]
[1748596867461,0.05382058,105330.0,105320.0,0.0241814]
[1748596867716,0.05382058,105330.0,105320.0,0.01754085]
[1748596867921,0.05382058,105330.0,105320.0,0.02418193]
[1748596868259,0.05382058,105330.0,105320.0,0.01754085]
[1748596868470,0.05382058,105330.0,105320.0,0.02418199]
[1748596868704,0.05382058,105330.0,105320.0,0.02418279]
[1748596869131,0.05382058,105330.0,105320.0,0.0241828]
[1748596869564,0.06331437,105330.0,105320.0,0.0241828]
[1748596869792,0.05382058,105330.0,105320.0,0.0241828]
[1748596870284,0.063315,105330.0,105320.0,0.0241828]